[Event "Ebbe cup 43"]
[Site "Schackcentrum, Vegatan 20, Gothenburg, Sweden"]
[Date "2022.09.09"]
[Round "1.1"]
[White "Imani Lasaki, Hamed"]
[Black "Berggren Torell, Harald"]
[Result "1/2-1/2"]
[TimeControl "90 minutes for 40 moves + 15 minutes for the rest of the game + 30 seconds per move from move one."]
[WhiteFideId "1766970"]
[BlackFideId "1714031"]
[WhiteElo "1595"]
[BlackElo "2125"]

1. d4 {[%clk 01:30:58]} {[%emt 00:00:01]} d6 {[%clk 01:30:56]} {[%emt
00:00:04]} 2. c4 {[%clk 01:28:59]} {[%emt 00:02:29]} e5 {[%clk 01:31:10]}
{[%emt 00:00:16]} 3. dxe5 {[%clk 01:22:08]} {[%emt 00:07:21]} dxe5 {[%clk
01:31:29]} {[%emt 00:00:11]} 4. Qxd8+ {[%clk 01:22:33]} {[%emt 00:00:05]} Kxd8
{[%clk 01:31:52]} {[%emt 00:00:07]} 5. Nc3 {[%clk 01:20:15]} {[%emt 00:02:48]}
Be6 {[%clk 01:31:28]} {[%emt 00:00:55]} 6. e4 {[%clk 01:18:47]} {[%emt
00:01:58]} f6 {[%clk 01:27:57]} {[%emt 00:04:01]} 7. Be3 {[%clk 01:07:58]}
{[%emt 00:11:17]} Nd7 {[%clk 01:27:15]} {[%emt 00:01:14]} 8. Be2 {[%clk
01:00:11]} {[%emt 00:08:16]} c6 {[%clk 01:22:33]} {[%emt 00:05:13]} 9. f4
{[%clk 00:53:58]} {[%emt 00:06:43]} Bb4 {[%clk 01:19:53]} {[%emt 00:03:10]} 10.
Nf3 {[%clk 00:48:38]} {[%emt 00:05:50]} exf4 {[%clk 01:16:46]} {[%emt
00:03:36]} 11. Bxf4 {[%clk 00:48:26]} {[%emt 00:00:42]} Ne7 {[%clk 01:15:39]}
{[%emt 00:01:38]} 12. O-O {[%clk 00:41:34]} {[%emt 00:07:21]} Ng6 {[%clk
01:13:07]} {[%emt 00:03:01]} 13. Bg3 {[%clk 00:41:47]} {[%emt 00:00:17]} Nge5
{[%clk 01:01:01]} {[%emt 00:12:37]} 14. Nd4 {[%clk 00:35:29]} {[%emt 00:06:48]}
Bc5 {[%clk 00:53:39]} {[%emt 00:07:52]} 15. Rad1 {[%clk 00:34:48]} {[%emt
00:01:10]} Bxc4 {[%clk 00:44:50]} {[%emt 00:09:19]} 16. Bxc4 {[%clk 00:33:02]}
{[%emt 00:02:17]} Nxc4 {[%clk 00:45:07]} {[%emt 00:00:13]} 17. Na4 {[%clk
00:33:30]} {[%emt 00:00:02]} Bf8 {[%clk 00:39:39]} {[%emt 00:05:58]} 18. Rf2
{[%clk 00:23:59]} {[%emt 00:10:01]} Ke8 {[%clk 00:29:12]} {[%emt 00:10:58]} 19.
Ne6 {[%clk 00:20:30]} {[%emt 00:03:59]} Rc8 {[%clk 00:29:23]} {[%emt 00:00:19]}
20. b3 {[%clk 00:15:18]} {[%emt 00:05:42]} Nce5 {[%clk 00:26:42]} {[%emt
00:03:11]} 21. Rfd2 {[%clk 00:14:19]} {[%emt 00:01:28]} b5 {[%clk 00:18:17]}
{[%emt 00:08:55]} 22. Bxe5 {[%clk 00:12:46]} {[%emt 00:02:03]} Nxe5 {[%clk
00:18:31]} {[%emt 00:00:16]} 23. Nxf8 {[%clk 00:09:25]} {[%emt 00:03:51]} Rxf8
{[%clk 00:18:51]} {[%emt 00:00:10]} 24. Nc5 {[%clk 00:09:37]} {[%emt 00:00:19]}
Rf7 {[%clk 00:16:04]} {[%emt 00:03:18]} 25. Ne6 {[%clk 00:08:10]} {[%emt
00:01:56]} Re7 {[%clk 00:15:58]} {[%emt 00:00:35]} 26. Rd8+ {[%clk 00:05:17]}
{[%emt 00:03:23]} Rxd8 {[%clk 00:16:23]} {[%emt 00:00:05]} 27. Rxd8+ {[%clk
00:05:43]} {[%emt 00:00:04]} Kf7 {[%clk 00:16:51]} {[%emt 00:00:02]} 28. Nc5
{[%clk 00:05:03]} {[%emt 00:01:10]} h5 {[%clk 00:12:50]} {[%emt 00:04:32]} 29.
h3 {[%clk 00:05:15]} {[%emt 00:00:17]} Kg6 {[%clk 00:12:20]} {[%emt 00:00:59]}
30. Kf2 {[%clk 00:05:14]} {[%emt 00:00:32]} h4 {[%clk 00:09:36]} {[%emt
00:03:15]} 31. Ke3 {[%clk 00:04:49]} {[%emt 00:00:55]} Kg5 {[%clk 00:07:40]}
{[%emt 00:02:26]} 32. Rd6 {[%clk 00:04:33]} {[%emt 00:00:45]} a5 {[%clk
00:04:05]} {[%emt 00:04:05]} 33. Ne6+ {[%clk 00:04:44]} {[%emt 00:00:18]} Kh5
{[%clk 00:04:31]} {[%emt 00:00:05]} 34. Nf4+ {[%clk 00:03:51]} {[%emt
00:01:23]} Kh6 {[%clk 00:04:43]} {[%emt 00:00:18]} 35. Ne6 {[%clk 00:03:25]}
{[%emt 00:00:56]} a4 {[%clk 00:04:31]} {[%emt 00:00:43]} 36. Nd4 {[%clk
00:03:27]} {[%emt 00:00:27]} Kh7 {[%clk 00:04:30]} {[%emt 00:00:31]} 37. bxa4
{[%clk 00:02:29]} {[%emt 00:01:28]} Nc4+ {[%clk 00:04:57]} {[%emt 00:00:03]} 38.
Kd3 {[%clk 00:01:40]} {[%emt 00:01:18]} Nxd6 {[%clk 00:05:18]} {[%emt
00:00:09]} 39. Nxc6 {[%clk 00:01:58]} {[%emt 00:00:12]} bxa4 {[%clk 00:05:10]}
{[%emt 00:00:38]} 40. Nxe7 {[%clk 00:02:24]} {[%emt 00:00:04]} 1/2-1/2

[Event "Ebbe cup 43"]
[Site "Schackcentrum, Vegatan 20, Gothenburg, Sweden"]
[Date "2022.09.09"]
[Round "1.2"]
[White "Ghaderi, Roshan"]
[Black "Andersson, Sol"]
[Result "1-0"]
[TimeControl "90 minutes for 40 moves + 15 minutes for the rest of the game + 30 seconds per move from move one."]
[WhiteFideId "1744011"]
[BlackFideId "1762702"]
[WhiteElo "1741"]
[BlackElo "1454"]

1. Nf3 {[%clk 01:30:56]} {[%emt 00:00:02]} Nf6 {[%clk 01:30:31]} {[%emt
00:00:30]} 2. e3 {[%clk 01:31:18]} {[%emt 00:00:08]} d5 {[%clk 01:30:18]}
{[%emt 00:00:43]} 3. b3 {[%clk 01:31:40]} {[%emt 00:00:08]} Bf5 {[%clk
01:28:48]} {[%emt 00:02:00]} 4. Bb2 {[%clk 01:31:59]} {[%emt 00:00:11]} e6
{[%clk 01:26:58]} {[%emt 00:02:19]} 5. a3 {[%clk 01:30:53]} {[%emt 00:01:38]}
Bd6 {[%clk 01:25:10]} {[%emt 00:02:16]} 6. d4 {[%clk 01:31:05]} {[%emt
00:00:18]} Nbd7 {[%clk 01:23:32]} {[%emt 00:02:07]} 7. c4 {[%clk 01:30:56]}
{[%emt 00:00:41]} c6 {[%clk 01:22:22]} {[%emt 00:01:40]} 8. Be2 {[%clk
01:31:19]} {[%emt 00:00:07]} O-O {[%clk 01:18:57]} {[%emt 00:03:53]} 9. O-O
{[%clk 01:29:32]} {[%emt 00:02:19]} Re8 {[%clk 01:18:56]} {[%emt 00:00:31]} 10.
Nbd2 {[%clk 01:29:40]} {[%emt 00:00:21]} Bg6 {[%clk 01:15:34]} {[%emt
00:03:53]} 11. h3 {[%clk 01:25:26]} {[%emt 00:04:43]} e5 {[%clk 01:14:25]}
{[%emt 00:01:39]} 12. cxd5 {[%clk 01:18:04]} {[%emt 00:07:52]} cxd5 {[%clk
01:06:50]} {[%emt 00:08:05]} 13. dxe5 {[%clk 01:16:19]} {[%emt 00:02:15]} Nxe5
{[%clk 01:07:08]} {[%emt 00:00:13]} 14. Nxe5 {[%clk 01:16:39]} {[%emt
00:00:09]} Bxe5 {[%clk 01:07:34]} {[%emt 00:00:05]} 15. Bxe5 {[%clk 01:17:00]}
{[%emt 00:00:09]} Rxe5 {[%clk 01:07:57]} {[%emt 00:00:06]} 16. Nf3 {[%clk
01:17:21]} {[%emt 00:00:09]} Re8 {[%clk 01:08:02]} {[%emt 00:00:25]} 17. Rc1
{[%clk 01:15:53]} {[%emt 00:01:58]} Rc8 {[%clk 01:07:58]} {[%emt 00:00:35]} 18.
Nd4 {[%clk 01:15:01]} {[%emt 00:01:21]} h6 {[%clk 01:04:29]} {[%emt 00:03:59]}
19. Rxc8 {[%clk 01:13:55]} {[%emt 00:01:36]} Qxc8 {[%clk 01:04:52]} {[%emt
00:00:07]} 20. Qc1 {[%clk 01:13:10]} {[%emt 00:01:16]} Qb8 {[%clk 01:02:56]}
{[%emt 00:02:26]} 21. Qc5 {[%clk 01:11:50]} {[%emt 00:01:49]} Rc8 {[%clk
01:00:57]} {[%emt 00:02:30]} 22. Qb4 {[%clk 01:11:02]} {[%emt 00:01:18]} Qc7
{[%clk 00:59:08]} {[%emt 00:02:19]} 23. Nb5 {[%clk 01:08:20]} {[%emt 00:03:11]}
Qb6 {[%clk 00:56:38]} {[%emt 00:03:00]} 24. Qa4 {[%clk 01:05:09]} {[%emt
00:03:42]} a6 {[%clk 00:50:41]} {[%emt 00:06:28]} 25. Nd4 {[%clk 01:03:21]}
{[%emt 00:02:17]} Qc5 {[%clk 00:50:00]} {[%emt 00:01:11]} 26. b4 {[%clk
01:01:57]} {[%emt 00:01:54]} Qc3 {[%clk 00:49:15]} {[%emt 00:01:14]} 27. b5
{[%clk 00:55:38]} {[%emt 00:06:51]} axb5 {[%clk 00:42:32]} {[%emt 00:07:13]} 28.
Nxb5 {[%clk 00:55:15]} {[%emt 00:00:52]} Qc2 {[%clk 00:38:39]} {[%emt
00:04:23]} 29. Qxc2 {[%clk 00:53:40]} {[%emt 00:02:06]} Rxc2 {[%clk 00:38:35]}
{[%emt 00:00:34]} 30. Re1 {[%clk 00:46:30]} {[%emt 00:07:39]} Kf8 {[%clk
00:36:32]} {[%emt 00:02:33]} 31. Kf1 {[%clk 00:46:02]} {[%emt 00:00:59]} Ke7
{[%clk 00:35:51]} {[%emt 00:01:12]} 32. Rd1 {[%clk 00:45:47]} {[%emt 00:00:44]}
Be4 {[%clk 00:34:35]} {[%emt 00:01:47]} 33. f3 {[%clk 00:44:45]} {[%emt
00:01:32]} Bf5 {[%clk 00:34:33]} {[%emt 00:00:30]} 34. Nd4 {[%clk 00:44:03]}
{[%emt 00:01:14]} Rxe2 {[%clk 00:31:30]} {[%emt 00:03:33]} 35. Nxf5+ {[%clk
00:41:45]} {[%emt 00:02:48]} Ke6 {[%clk 00:31:50]} {[%emt 00:00:10]} 36. Nd4+
{[%clk 00:42:08]} {[%emt 00:00:07]} 1-0

[Event "Ebbe cup 43"]
[Site "Schackcentrum, Vegatan 20, Gothenburg, Sweden"]
[Date "2022.09.09"]
[Round "1.3"]
[White "Madevan Vaishnavi, Yaashvan"]
[Black "Eldh, Hjalmar"]
[Result "1/2-1/2"]
[TimeControl "90 minutes for 40 moves + 15 minutes for the rest of the game + 30 seconds per move from move one."]
[WhiteFideId "1772180"]
[BlackFideId "1767968"]
[WhiteElo "1439"]
[BlackElo "1717"]

1. e4 {[%clk 01:30:59]} e5 {[%clk 01:30:54]} {[%emt 00:00:06]} 2. Nf3 {[%clk
01:31:23]} {[%emt 00:00:06]} Nc6 {[%clk 01:31:18]} {[%emt 00:00:06]} 3. d4
{[%clk 01:31:46]} {[%emt 00:00:07]} exd4 {[%clk 01:31:40]} {[%emt 00:00:07]} 4.
Bc4 {[%clk 01:32:09]} {[%emt 00:00:08]} Nf6 {[%clk 01:32:02]} {[%emt 00:00:08]}
5. O-O {[%clk 01:32:30]} {[%emt 00:00:09]} Nxe4 {[%clk 01:32:21]} {[%emt
00:00:10]} 6. Re1 {[%clk 01:32:51]} {[%emt 00:00:10]} d5 {[%clk 01:32:45]}
{[%emt 00:00:06]} 7. Bxd5 {[%clk 01:33:01]} {[%emt 00:00:21]} Qxd5 {[%clk
01:33:05]} {[%emt 00:00:09]} 8. Nc3 {[%clk 01:33:22]} {[%emt 00:00:10]} Qd8
{[%clk 01:33:28]} {[%emt 00:00:06]} 9. Nxe4 {[%clk 01:33:40]} {[%emt 00:00:13]}
Be7 {[%clk 01:33:47]} {[%emt 00:00:10]} 10. Bf4 {[%clk 01:33:49]} {[%emt
00:00:21]} O-O {[%clk 01:33:35]} {[%emt 00:00:42]} 11. h3 {[%clk 01:33:56]}
{[%emt 00:00:23]} Bb4 {[%clk 01:31:48]} {[%emt 00:02:17]} 12. c3 {[%clk
01:32:33]} {[%emt 00:01:54]} dxc3 {[%clk 01:31:07]} {[%emt 00:01:10]} 13. bxc3
{[%clk 01:32:48]} {[%emt 00:00:16]} Qxd1 {[%clk 01:31:23]} {[%emt 00:00:14]} 14.
Raxd1 {[%clk 01:32:15]} {[%emt 00:01:02]} Ba5 {[%clk 01:31:42]} {[%emt
00:00:12]} 15. Ne5 {[%clk 01:30:55]} {[%emt 00:01:49]} Nxe5 {[%clk 01:28:21]}
{[%emt 00:03:52]} 16. Bxe5 {[%clk 01:31:08]} {[%emt 00:00:15]} Bb6 {[%clk
01:27:26]} {[%emt 00:01:25]} 17. Bd4 {[%clk 01:30:12]} {[%emt 00:01:28]} Be6
{[%clk 01:27:38]} {[%emt 00:00:18]} 18. a3 {[%clk 01:29:46]} {[%emt 00:00:57]}
Rad8 {[%clk 01:23:52]} {[%emt 00:04:16]} 19. Re3 {[%clk 01:27:08]} {[%emt
00:03:08]} Bxd4 {[%clk 01:22:51]} {[%emt 00:01:31]} 20. cxd4 {[%clk 01:26:46]}
{[%emt 00:00:52]} b6 {[%clk 01:23:04]} {[%emt 00:00:18]} 21. Red3 {[%clk
01:23:18]} {[%emt 00:03:58]} Bd5 {[%clk 01:19:49]} {[%emt 00:03:43]} 22. f3
{[%clk 01:22:17]} {[%emt 00:01:33]} Rfe8 {[%clk 01:19:41]} {[%emt 00:00:35]} 23.
Nc3 {[%clk 01:19:56]} {[%emt 00:02:53]} Bb3 {[%clk 01:18:27]} {[%emt 00:01:44]}
24. Rc1 {[%clk 01:18:44]} {[%emt 00:01:42]} Bc4 {[%clk 01:13:33]} {[%emt
00:05:24]} 25. Rdd1 {[%clk 01:18:31]} {[%emt 00:00:43]} Re7 {[%clk 01:09:41]}
{[%emt 00:04:21]} 26. Rd2 {[%clk 01:13:15]} {[%emt 00:05:47]} f5 {[%clk
01:05:53]} {[%emt 00:04:17]} 27. Kf2 {[%clk 01:12:02]} {[%emt 00:01:44]} Red7
{[%clk 01:05:57]} {[%emt 00:00:27]} 28. Rcd1 {[%clk 01:11:29]} {[%emt
00:01:03]} c5 {[%clk 01:04:47]} {[%emt 00:01:39]} 29. Ke3 {[%clk 01:10:06]}
{[%emt 00:01:54]} cxd4+ {[%clk 01:04:12]} {[%emt 00:01:05]} 30. Rxd4 {[%clk
01:10:21]} {[%emt 00:00:16]} Rxd4 {[%clk 01:04:31]} {[%emt 00:00:10]} 31. Rxd4
{[%clk 01:10:41]} {[%emt 00:00:10]} Rxd4 {[%clk 01:04:53]} {[%emt 00:00:09]} 32.
Kxd4 {[%clk 01:10:53]} {[%emt 00:00:06]} Bf1 {[%clk 01:05:22]} 33. f4 {[%clk
01:09:28]} {[%emt 00:02:08]} Bxg2 {[%clk 01:05:05]} {[%emt 00:00:46]} 34. h4
{[%clk 01:09:31]} {[%emt 00:00:29]} Kf7 {[%clk 01:04:54]} {[%emt 00:00:40]} 35.
Ke5 {[%clk 01:08:20]} {[%emt 00:01:41]} Kg6 {[%clk 01:02:46]} {[%emt 00:02:37]}
36. Ne2 {[%clk 01:06:09]} {[%emt 00:02:42]} Kh5 {[%clk 01:02:43]} {[%emt
00:00:32]} 37. Ng3 {[%clk 01:06:00]} {[%emt 00:00:39]} Kxh4 {[%clk 01:02:26]}
{[%emt 00:00:47]} 38. Nxf5+ {[%clk 01:06:19]} {[%emt 00:00:11]} Kg4 {[%clk
01:02:44]} {[%emt 00:00:11]} 39. Nxg7 {[%clk 01:06:39]} {[%emt 00:00:12]} Bf1
{[%clk 01:02:21]} {[%emt 00:00:52]} 40. f5 {[%clk 01:05:54]} {[%emt 00:01:16]}
Bc4 {[%clk 01:02:31]} {[%emt 00:00:17]} 41. f6 {[%clk 01:04:37]} {[%emt
00:01:43]} Bf7 {[%clk 01:02:42]} {[%emt 00:00:24]} 42. Kd6 {[%clk 01:04:08]}
{[%emt 00:01:01]} h5 {[%clk 01:02:28]} {[%emt 00:00:44]} 43. Nxh5 {[%clk
01:04:28]} {[%emt 00:00:09]} Kxh5 {[%clk 01:02:47]} {[%emt 00:00:12]} 44. Kc7
{[%clk 01:03:21]} {[%emt 00:01:38]} Kg6 {[%clk 01:02:47]} {[%emt 00:00:29]} 45.
Kb7 {[%clk 01:03:37]} {[%emt 00:00:14]} b5 {[%clk 01:02:55]} {[%emt 00:00:22]}
46. Kxa7 {[%clk 01:03:48]} {[%emt 00:00:19]} Kxf6 {[%clk 01:03:10]} {[%emt
00:00:16]} 47. Kb6 {[%clk 01:04:08]} {[%emt 00:00:10]} Be8 {[%clk 01:03:20]}
{[%emt 00:00:19]} 48. Kc5 {[%clk 01:04:22]} {[%emt 00:00:16]} Ke5 {[%clk
01:03:38]} {[%emt 00:00:12]} 49. Kb4 {[%clk 01:02:43]} {[%emt 00:02:09]} Kd4
{[%clk 01:03:58]} {[%emt 00:00:10]} 50. a4 {[%clk 01:02:49]} {[%emt 00:00:25]}
bxa4 {[%clk 01:04:20]} {[%emt 00:00:07]} 51. Ka3 {[%clk 01:03:13]} {[%emt
00:00:06]} Kc3 {[%clk 01:04:38]} {[%emt 00:00:11]} 52. Ka2 {[%clk 01:03:28]}
{[%emt 00:00:16]} Kb4 {[%clk 01:04:54]} {[%emt 00:00:14]} 53. Kb2 {[%clk
01:02:01]} {[%emt 00:01:58]} Bf7 {[%clk 01:05:15]} {[%emt 00:00:09]} 54. Ka1
{[%clk 01:01:51]} {[%emt 00:00:40]} Kc3 {[%clk 01:05:32]} {[%emt 00:00:12]} 55.
Kb1 {[%clk 01:02:03]} {[%emt 00:00:19]} a3 {[%clk 01:05:47]} {[%emt 00:00:15]}
56. Ka1 {[%clk 01:02:08]} {[%emt 00:00:25]} a2 {[%clk 01:06:12]} {[%emt
00:00:05]} 1/2-1/2

[Event "Ebbe cup 43"]
[Site "Schackcentrum, Vegatan 20, Gothenburg, Sweden"]
[Date "2022.09.09"]
[Round "1.4"]
[White "Havner, Arvid"]
[Black "Ghaderi, Noan"]
[Result "1/2-1/2"]
[TimeControl "90 minutes for 40 moves + 15 minutes for the rest of the game + 30 seconds per move from move one."]
[WhiteFideId "1769308"]
[BlackFideId "1747096"]
[WhiteElo "1677"]
[BlackElo "1353"]

1. e4 {[%clk 01:30:59]} {[%emt 00:00:01]} c6 {[%clk 01:30:30]} {[%emt
00:00:30]} 2. d4 {[%clk 01:31:24]} {[%emt 00:00:04]} d5 {[%clk 01:30:57]}
{[%emt 00:00:04]} 3. Nc3 {[%clk 01:31:47]} {[%emt 00:00:07]} dxe4 {[%clk
01:30:37]} {[%emt 00:00:50]} 4. Nxe4 {[%clk 01:32:12]} {[%emt 00:00:05]} Bf5
{[%clk 01:30:59]} {[%emt 00:00:08]} 5. Ng3 {[%clk 01:32:24]} {[%emt 00:00:18]}
Bg6 {[%clk 01:31:20]} {[%emt 00:00:09]} 6. h4 {[%clk 01:32:42]} {[%emt
00:00:12]} h6 {[%clk 01:31:44]} {[%emt 00:00:06]} 7. Nf3 {[%clk 01:33:03]}
{[%emt 00:00:09]} e6 {[%clk 01:31:18]} {[%emt 00:00:56]} 8. h5 {[%clk
01:33:18]} {[%emt 00:00:15]} Bh7 {[%clk 01:31:42]} {[%emt 00:00:06]} 9. Bf4
{[%clk 01:33:20]} {[%emt 00:00:27]} Nf6 {[%clk 01:30:47]} {[%emt 00:01:25]} 10.
Bd3 {[%clk 01:33:02]} {[%emt 00:00:48]} Bxd3 {[%clk 01:31:10]} {[%emt
00:00:07]} 11. Qxd3 {[%clk 01:33:24]} {[%emt 00:00:08]} Bd6 {[%clk 01:31:34]}
{[%emt 00:00:07]} 12. Be5 {[%clk 01:30:57]} {[%emt 00:02:56]} Bxe5 {[%clk
01:29:44]} {[%emt 00:02:20]} 13. Nxe5 {[%clk 01:30:15]} {[%emt 00:01:12]} Nbd7
{[%clk 01:28:34]} {[%emt 00:01:40]} 14. f4 {[%clk 01:25:19]} {[%emt 00:05:26]}
Nd5 {[%clk 01:16:58]} {[%emt 00:12:06]} 15. Rf1 {[%clk 01:23:25]} {[%emt
00:02:24]} Qe7 {[%clk 01:12:37]} {[%emt 00:04:51]} 16. O-O-O {[%clk 01:21:25]}
{[%emt 00:02:31]} O-O-O {[%clk 01:12:53]} {[%emt 00:00:14]} 17. Rf3 {[%clk
01:13:19]} {[%emt 00:08:35]} Nxe5 {[%clk 01:04:32]} {[%emt 00:08:51]} 18. fxe5
{[%clk 01:11:36]} {[%emt 00:02:12]} Nb4 {[%clk 01:00:00]} {[%emt 00:05:03]} 19.
Qa3 {[%clk 01:08:56]} {[%emt 00:03:10]} c5 {[%clk 00:47:30]} {[%emt 00:13:00]}
20. Ne4 {[%clk 01:02:11]} {[%emt 00:07:15]} c4 {[%clk 00:33:44]} {[%emt
00:14:16]} 21. Nd6+ {[%clk 00:59:57]} {[%emt 00:02:43]} Rxd6 {[%clk 00:32:16]}
{[%emt 00:01:58]} 22. exd6 {[%clk 01:00:04]} {[%emt 00:00:23]} Qxd6 {[%clk
00:30:52]} {[%emt 00:01:55]} 23. Qxa7 {[%clk 00:58:25]} {[%emt 00:02:07]} Rf8
{[%clk 00:29:09]} {[%emt 00:02:14]} 24. Qc5+ {[%clk 00:52:39]} {[%emt
00:06:16]} Qxc5 {[%clk 00:28:56]} {[%emt 00:00:42]} 25. dxc5 {[%clk 00:52:47]}
{[%emt 00:00:21]} Nxa2+ {[%clk 00:28:56]} {[%emt 00:00:31]} 26. Kb1 {[%clk
00:53:09]} {[%emt 00:00:08]} Nb4 {[%clk 00:29:17]} {[%emt 00:00:09]} 27. Rf4
{[%clk 00:51:05]} {[%emt 00:02:34]} Nd5 {[%clk 00:28:31]} {[%emt 00:01:16]} 28.
Re4 {[%clk 00:49:12]} {[%emt 00:02:22]} c3 {[%clk 00:27:28]} {[%emt 00:01:33]}
29. Ra4 {[%clk 00:45:05]} {[%emt 00:04:37]} Kc7 {[%clk 00:27:08]} {[%emt
00:00:50]} 30. Rd3 {[%clk 00:40:26]} {[%emt 00:05:09]} cxb2 {[%clk 00:26:02]}
{[%emt 00:01:37]} 31. Kxb2 {[%clk 00:40:21]} {[%emt 00:00:34]} Kc6 {[%clk
00:25:42]} {[%emt 00:00:51]} 32. Rg3 {[%clk 00:37:31]} {[%emt 00:03:20]} Nf6
{[%clk 00:18:47]} {[%emt 00:07:26]} 33. Rh4 {[%clk 00:36:44]} {[%emt 00:01:16]}
Rg8 {[%clk 00:18:44]} {[%emt 00:00:35]} 34. Rb3 {[%clk 00:26:54]} {[%emt
00:10:20]} g5 {[%clk 00:14:16]} {[%emt 00:04:58]} 35. hxg6 {[%clk 00:25:08]}
{[%emt 00:02:16]} Rxg6 {[%clk 00:14:23]} {[%emt 00:00:22]} 36. Rb6+ {[%clk
00:24:19]} {[%emt 00:01:20]} Kxc5 {[%clk 00:14:08]} {[%emt 00:00:45]} 37. Rxb7
{[%clk 00:24:22]} {[%emt 00:00:27]} Rxg2 {[%clk 00:13:52]} {[%emt 00:00:45]} 38.
Rxh6 {[%clk 00:24:00]} {[%emt 00:00:52]} Nd5 {[%clk 00:13:47]} {[%emt
00:00:35]} 39. Rxf7 {[%clk 00:22:02]} {[%emt 00:02:28]} Kd6 {[%clk 00:14:05]}
{[%emt 00:00:12]} 40. Rf3 {[%clk 00:18:15]} {[%emt 00:04:17]} Nb4 {[%clk
00:11:20]} {[%emt 00:03:15]} 41. Rc3 {[%clk 00:17:27]} {[%emt 00:01:17]} Re2
{[%clk 00:11:14]} {[%emt 00:00:37]} 42. Kb3 {[%clk 00:16:51]} {[%emt 00:01:06]}
Nd5 {[%clk 00:10:07]} {[%emt 00:01:37]} 43. Rd3 {[%clk 00:15:42]} {[%emt
00:01:39]} Kc5 {[%clk 00:09:35]} {[%emt 00:01:02]} 44. c4 {[%clk 00:11:54]}
{[%emt 00:04:17]} Nf4 {[%clk 00:09:05]} {[%emt 00:01:01]} 45. Rf3 {[%clk
00:10:14]} {[%emt 00:02:10]} e5 {[%clk 00:07:34]} {[%emt 00:02:01]} 46. Rc3
{[%clk 00:03:13]} {[%emt 00:07:31]} Re4 {[%clk 00:06:31]} {[%emt 00:01:33]} 47.
Rh8 {[%clk 00:00:50]} {[%emt 00:02:53]} Ne2 {[%clk 00:04:41]} {[%emt 00:02:19]}
48. Rc8+ {[%clk 00:00:35]} {[%emt 00:00:44]} Kd4 {[%clk 00:05:08]} {[%emt
00:00:04]} 49. Rd8+ {[%clk 00:00:58]} {[%emt 00:00:07]} Kc5 {[%clk 00:05:11]}
{[%emt 00:00:27]} 50. Rd5+ {[%clk 00:01:06]} {[%emt 00:00:22]} Kc6 {[%clk
00:05:36]} {[%emt 00:00:04]} 51. Rh3 {[%clk 00:09:50]} {[%emt 00:06:45]} Nd4+
{[%clk 00:18:39]} {[%emt 00:02:29]} 52. Kc3 {[%clk 00:09:41]} {[%emt 00:00:39]}
Re1 {[%clk 00:15:22]} {[%emt 00:03:46]} 53. Rh6+ {[%clk 00:09:21]} {[%emt
00:00:50]} Kc7 {[%clk 00:15:08]} {[%emt 00:00:46]} 54. Rc5+ {[%clk 00:08:53]}
{[%emt 00:00:58]} Kd7 {[%clk 00:15:04]} {[%emt 00:00:33]} 55. Ra5 {[%clk
00:09:01]} {[%emt 00:00:22]} Rc1+ {[%clk 00:13:01]} {[%emt 00:02:33]} 56. Kd3
{[%clk 00:09:13]} {[%emt 00:00:18]} Rd1+ {[%clk 00:13:04]} {[%emt 00:00:27]} 57.
Ke4 {[%clk 00:09:14]} {[%emt 00:00:29]} Nc6 {[%clk 00:12:16]} {[%emt 00:01:19]}
58. Ra6 {[%clk 00:09:18]} {[%emt 00:00:27]} Re1+ {[%clk 00:11:46]} {[%emt
00:01:00]} 59. Kf5 {[%clk 00:07:04]} {[%emt 00:02:43]} Rf1+ {[%clk 00:11:54]}
{[%emt 00:00:22]} 60. Kg4 {[%clk 00:06:21]} {[%emt 00:01:13]} Rf4+ {[%clk
00:11:36]} {[%emt 00:00:48]} 61. Kg5 {[%clk 00:06:13]} {[%emt 00:00:39]} Rxc4
{[%clk 00:12:03]} {[%emt 00:00:04]} 62. Rh7+ {[%clk 00:06:40]} {[%emt
00:00:02]} Kd6 {[%clk 00:12:30]} {[%emt 00:00:03]} 63. Rh6+ {[%clk 00:07:02]}
{[%emt 00:00:08]} Kd5 {[%clk 00:12:06]} {[%emt 00:00:54]} 1/2-1/2